[Event "Vastgota Open 2022"]
[Site "Skara stadshotell, Jarnvagsgatan 5, Skara, Sweden"]
[Date "2022.10.29"]
[Round "1.7"]
[White "Berglund, Joar"]
[Black "Wengholm, Anders"]
[Result "0-1"]
[TimeControl "30 minutes + 10 seconds per move from move one."]
[WhiteFideId "1737856"]
[BlackFideId "1704818"]
[WhiteElo "1725"]
[BlackElo "2179"]

1. e4 {[%clk 00:30:12]} {[%emt 00:00:07]} c5 {[%clk 00:30:18]} {[%emt
00:00:03]} 2. Nf3 {[%clk 00:30:20]} {[%emt 00:00:04]} e6 {[%clk 00:30:25]} 3.
d4 {[%clk 00:30:28]} {[%emt 00:00:02]} cxd4 {[%clk 00:30:34]} {[%emt 00:00:01]}
4. Nxd4 {[%clk 00:30:36]} {[%emt 00:00:02]} Nf6 {[%clk 00:30:42]} {[%emt
00:00:02]} 5. Nc3 {[%clk 00:30:43]} {[%emt 00:00:03]} d6 {[%clk 00:30:50]} 6.
Be3 {[%clk 00:30:46]} {[%emt 00:00:06]} a6 {[%clk 00:30:58]} {[%emt 00:00:03]}
7. f3 {[%clk 00:30:42]} {[%emt 00:00:14]} b5 {[%clk 00:31:00]} {[%emt
00:00:08]} 8. a4 {[%clk 00:30:36]} {[%emt 00:00:16]} b4 {[%clk 00:31:05]}
{[%emt 00:00:05]} 9. Nce2 {[%clk 00:30:43]} {[%emt 00:00:03]} Nbd7 {[%clk
00:28:51]} {[%emt 00:02:57]} 10. Qd2 {[%clk 00:30:24]} d5 {[%clk 00:28:52]}
{[%emt 00:00:05]} 11. exd5 {[%clk 00:29:48]} {[%emt 00:00:46]} Nxd5 {[%clk
00:29:00]} {[%emt 00:00:02]} 12. Bg5 {[%clk 00:29:05]} {[%emt 00:00:52]} Qc7
{[%clk 00:27:20]} {[%emt 00:01:51]} 13. Bh4 {[%clk 00:28:45]} {[%emt 00:00:29]}
Bd6 {[%clk 00:26:11]} {[%emt 00:01:19]} 14. Bg3 {[%clk 00:28:49]} {[%emt
00:00:06]} Bxg3+ {[%clk 00:26:09]} {[%emt 00:00:13]} 15. Nxg3 {[%clk 00:28:55]}
{[%emt 00:00:03]} O-O {[%clk 00:26:10]} {[%emt 00:00:10]} 16. Bd3 {[%clk
00:28:52]} {[%emt 00:00:13]} Nc5 {[%clk 00:25:13]} {[%emt 00:01:07]} 17. O-O
{[%clk 00:28:04]} {[%emt 00:00:58]} Nxd3 {[%clk 00:24:53]} {[%emt 00:00:30]} 18.
Qxd3 {[%clk 00:27:59]} {[%emt 00:00:15]} Bb7 {[%clk 00:23:53]} {[%emt
00:01:10]} 19. Kh1 {[%clk 00:27:43]} {[%emt 00:00:26]} Rac8 {[%clk 00:23:50]}
{[%emt 00:00:13]} 20. Rf2 {[%clk 00:27:39]} {[%emt 00:00:14]} g6 {[%clk
00:22:05]} {[%emt 00:01:56]} 21. Ne4 {[%clk 00:27:12]} {[%emt 00:00:36]} Kg7
{[%clk 00:21:32]} {[%emt 00:00:43]} 22. Rd1 {[%clk 00:26:56]} {[%emt 00:00:26]}
Qa5 {[%clk 00:20:50]} {[%emt 00:00:52]} 23. b3 {[%clk 00:25:03]} {[%emt
00:02:03]} Qc7 {[%clk 00:20:46]} {[%emt 00:00:15]} 24. Rfd2 {[%clk 00:23:50]}
{[%emt 00:01:22]} e5 {[%clk 00:17:12]} {[%emt 00:03:44]} 25. Ne2 {[%clk
00:23:31]} {[%emt 00:00:28]} Rfd8 {[%clk 00:17:19]} {[%emt 00:00:04]} 26. N2g3
{[%clk 00:20:56]} {[%emt 00:02:45]} Nc3 {[%clk 00:17:00]} {[%emt 00:00:29]} 27.
Qxd8 {[%emt 00:00:24]} Rxd8 {[%clk 00:17:04]} {[%emt 00:00:04]} 28. Rxd8 {[%clk
00:20:42]} {[%emt 00:00:12]} Nxd1 {[%clk 00:17:10]} {[%emt 00:00:04]} 29. Rxd1
{[%clk 00:20:45]} {[%emt 00:00:07]} Qxc2 {[%clk 00:17:12]} {[%emt 00:00:08]} 30.
Re1 {[%clk 00:20:18]} {[%emt 00:00:37]} Qxb3 {[%clk 00:16:50]} {[%emt
00:00:33]} 31. Nc5 {[%clk 00:20:20]} {[%emt 00:00:07]} Qc3 {[%clk 00:16:54]}
{[%emt 00:00:06]} 0-1

[Event "Vastgota Open 2022"]
[Site "Skara stadshotell, Jarnvagsgatan 5, Skara, Sweden"]
[Date "2022.10.29"]
[Round "1.8"]
[White "Eklund, Lars-Goran"]
[Black "Andersson, Christian"]
[Result "1-0"]
[TimeControl "30 minutes + 10 seconds per move from move one."]
[WhiteTitle "FM"]
[WhiteFideId "1701010"]
[BlackFideId "1724789"]
[WhiteElo "2176"]
[BlackElo "1719"]

1. Nf3 {[%clk 00:30:16]} {[%emt 00:00:04]} Nf6 {[%clk 00:30:09]} {[%emt
00:00:11]} 2. c4 {[%clk 00:30:23]} {[%emt 00:00:03]} c5 {[%clk 00:30:14]}
{[%emt 00:00:05]} 3. Nc3 {[%clk 00:30:23]} {[%emt 00:00:10]} Nc6 {[%clk
00:29:52]} {[%emt 00:00:31]} 4. d4 {[%clk 00:30:30]} {[%emt 00:00:03]} cxd4
{[%clk 00:29:46]} {[%emt 00:00:16]} 5. Nxd4 {[%clk 00:30:38]} {[%emt 00:00:03]}
e5 {[%clk 00:28:44]} {[%emt 00:02:52]} 6. Ndb5 {[%clk 00:29:30]} d6 {[%clk
00:26:21]} {[%emt 00:02:11]} 7. Nd5 {[%clk 00:29:06]} {[%emt 00:00:34]} Nxd5
{[%clk 00:25:58]} {[%emt 00:00:32]} 8. cxd5 {[%clk 00:29:13]} {[%emt 00:00:04]}
Qa5+ {[%clk 00:25:54]} {[%emt 00:00:14]} 9. Nc3 {[%clk 00:29:19]} {[%emt
00:00:03]} Ne7 {[%clk 00:24:08]} {[%emt 00:01:56]} 10. e4 {[%clk 00:28:51]}
{[%emt 00:00:38]} Bd7 {[%clk 00:23:01]} {[%emt 00:01:17]} 11. Qb3 {[%clk
00:28:14]} {[%emt 00:00:47]} Rc8 {[%clk 00:20:34]} {[%emt 00:02:37]} 12. Bd2
{[%clk 00:27:40]} {[%emt 00:00:44]} g6 {[%clk 00:18:22]} {[%emt 00:02:20]} 13.
Nb5 {[%clk 00:26:22]} {[%emt 00:01:31]} Qb6 {[%clk 00:17:45]} {[%emt 00:00:47]}
14. a4 {[%clk 00:25:50]} {[%emt 00:00:42]} a5 {[%clk 00:17:07]} {[%emt
00:00:47]} 15. Be3 {[%clk 00:25:36]} {[%emt 00:00:24]} Rc5 {[%clk 00:16:04]}
{[%emt 00:01:12]} 16. Bxc5 {[%clk 00:23:43]} {[%emt 00:02:05]} Qxc5 {[%clk
00:16:04]} {[%emt 00:00:09]} 17. Qc4 {[%clk 00:21:43]} {[%emt 00:02:10]} Nc8
{[%clk 00:13:40]} {[%emt 00:02:34]} 18. Be2 {[%clk 00:18:06]} {[%emt 00:03:47]}
Bh6 {[%clk 00:12:35]} {[%emt 00:01:13]} 19. O-O {[%clk 00:11:05]} {[%emt
00:07:14]} O-O {[%clk 00:12:27]} {[%emt 00:00:17]} 20. Na3 {[%clk 00:07:56]}
{[%emt 00:03:19]} f5 {[%clk 00:11:14]} {[%emt 00:01:22]} 21. Qxc5 {[%clk
00:07:49]} {[%emt 00:00:17]} dxc5 {[%clk 00:11:21]} {[%emt 00:00:03]} 22. Nc4
{[%clk 00:07:57]} {[%emt 00:00:02]} Rf6 {[%clk 00:10:09]} {[%emt 00:01:21]} 23.
Nxe5 {[%clk 00:07:38]} {[%emt 00:00:30]} Be8 {[%clk 00:10:18]} 24. exf5 {[%clk
00:07:17]} {[%emt 00:00:33]} Rxf5 {[%clk 00:09:03]} {[%emt 00:01:25]} 25. Bg4
{[%clk 00:06:50]} {[%emt 00:00:37]} Rxe5 {[%clk 00:09:08]} {[%emt 00:00:05]} 26.
Bxc8 {[%clk 00:06:58]} {[%emt 00:00:02]} Rxd5 {[%clk 00:08:33]} {[%emt
00:00:45]} 27. Be6+ {[%clk 00:07:03]} {[%emt 00:00:05]} 1-0

[Event "Vastgota Open 2022"]
[Site "Skara stadshotell, Jarnvagsgatan 5, Skara, Sweden"]
[Date "2022.10.29"]
[Round "1.9"]
[White "Bohman, Leif"]
[Black "Johnson, Daniel"]
[Result "0-1"]
[TimeControl "30 minutes + 10 seconds per move from move one."]
[WhiteFideId "1710354"]
[BlackFideId "1721283"]
[WhiteElo "1687"]
[BlackElo "2155"]

1. d4 {[%clk 00:30:18]} Nf6 {[%clk 00:29:26]} {[%emt 00:00:55]} 2. Nf3 {[%clk
00:30:25]} {[%emt 00:00:02]} e6 {[%clk 00:29:34]} {[%emt 00:00:03]} 3. Bf4
{[%clk 00:30:29]} {[%emt 00:00:05]} d5 {[%clk 00:29:42]} {[%emt 00:00:02]} 4.
e3 {[%clk 00:30:34]} {[%emt 00:00:05]} Bd6 {[%clk 00:29:50]} {[%emt 00:00:03]}
5. Bg3 {[%clk 00:30:41]} {[%emt 00:00:02]} O-O {[%clk 00:29:56]} {[%emt
00:00:04]} 6. Nbd2 {[%clk 00:30:48]} {[%emt 00:00:03]} c5 {[%clk 00:30:04]}
{[%emt 00:00:02]} 7. c3 {[%clk 00:30:56]} {[%emt 00:00:02]} Qc7 {[%clk
00:30:11]} {[%emt 00:00:03]} 8. Bd3 {[%clk 00:30:43]} {[%emt 00:00:23]} Nbd7
{[%clk 00:30:13]} {[%emt 00:00:08]} 9. Qe2 {[%clk 00:30:29]} {[%emt 00:00:24]}
e5 {[%clk 00:30:11]} {[%emt 00:01:48]} 10. dxe5 Nxe5 {[%clk 00:30:19]} 11. Bc2
{[%clk 00:30:29]} Re8 {[%clk 00:29:59]} 12. Nxe5 Bxe5 {[%clk 00:30:07]} 13. Nf3
{[%clk 00:30:30]} Bxg3 {[%clk 00:29:40]} {[%emt 00:00:14]} 14. hxg3 {[%clk
00:30:36]} {[%emt 00:00:05]} h6 {[%clk 00:29:14]} {[%emt 00:00:36]} 15. O-O
{[%clk 00:30:08]} {[%emt 00:00:37]} Bg4 {[%clk 00:28:12]} {[%emt 00:01:13]} 16.
Qd3 {[%clk 00:29:49]} {[%emt 00:00:30]} Rad8 {[%clk 00:27:49]} {[%emt
00:00:33]} 17. Rfe1 {[%clk 00:29:23]} {[%emt 00:00:36]} Ne4 {[%clk 00:24:33]}
{[%emt 00:03:26]} 18. Nh2 {[%clk 00:28:33]} {[%emt 00:01:00]} Bf5 {[%clk
00:24:08]} {[%emt 00:00:35]} 19. Qe2 {[%clk 00:27:12]} {[%emt 00:01:31]} Bg6
{[%clk 00:22:29]} {[%emt 00:01:48]} 20. Rad1 {[%clk 00:26:22]} {[%emt
00:01:01]} Qb6 {[%clk 00:21:17]} {[%emt 00:01:23]} 21. Bb1 {[%clk 00:26:18]}
{[%emt 00:00:13]} Qc6 {[%clk 00:19:12]} {[%emt 00:02:15]} 22. Bd3 {[%clk
00:25:05]} {[%emt 00:01:23]} a6 {[%clk 00:18:56]} {[%emt 00:00:27]} 23. Nf1
{[%clk 00:21:23]} {[%emt 00:03:51]} c4 {[%clk 00:17:25]} {[%emt 00:01:41]} 24.
Bb1 {[%clk 00:21:13]} {[%emt 00:00:19]} Nc5 {[%clk 00:17:24]} {[%emt 00:00:12]}
25. Bxg6 {[%clk 00:15:42]} {[%emt 00:05:40]} Qxg6 {[%clk 00:17:17]} {[%emt
00:00:17]} 26. Rd4 {[%clk 00:15:32]} {[%emt 00:00:20]} Nd3 {[%clk 00:14:53]}
{[%emt 00:02:34]} 27. Rd1 {[%clk 00:15:32]} {[%emt 00:00:10]} Re4 {[%clk
00:11:35]} {[%emt 00:03:29]} 28. Nh2 {[%clk 00:14:11]} {[%emt 00:01:30]} Rxd4
{[%clk 00:09:20]} {[%emt 00:02:25]} 29. cxd4 {[%clk 00:12:30]} {[%emt
00:01:51]} b5 {[%clk 00:08:55]} {[%emt 00:00:36]} 30. Nf3 {[%clk 00:12:09]}
{[%emt 00:00:31]} Qh5 {[%clk 00:07:24]} {[%emt 00:01:40]} 31. Rd2 {[%clk
00:11:25]} {[%emt 00:00:56]} a5 {[%clk 00:05:24]} {[%emt 00:02:10]} 32. b3
{[%clk 00:07:40]} {[%emt 00:03:54]} a4 {[%clk 00:04:42]} {[%emt 00:00:52]} 33.
bxa4 {[%clk 00:06:48]} {[%emt 00:01:02]} bxa4 {[%clk 00:04:50]} {[%emt
00:00:02]} 34. Qd1 {[%clk 00:06:33]} {[%emt 00:00:25]} a3 {[%clk 00:03:28]}
{[%emt 00:01:32]} 35. Qb1 {[%clk 00:04:35]} {[%emt 00:02:08]} Qg6 {[%clk
00:02:41]} {[%emt 00:00:57]} 36. Ne1 {[%clk 00:02:45]} {[%emt 00:02:00]} Nxe1
{[%clk 00:01:47]} {[%emt 00:01:04]} 37. Qxe1 {[%clk 00:02:52]} {[%emt
00:00:03]} Rb8 {[%clk 00:01:47]} {[%emt 00:00:11]} 38. Kf1 {[%clk 00:01:31]}
{[%emt 00:01:30]} c3 {[%clk 00:01:30]} {[%emt 00:00:27]} 39. Rd1 {[%clk
00:01:30]} {[%emt 00:00:11]} c2 {[%clk 00:01:38]} {[%emt 00:00:02]} 40. Rc1
{[%clk 00:01:36]} {[%emt 00:00:03]} Rb1 {[%clk 00:01:45]} {[%emt 00:00:04]} 41.
Qd2 {[%clk 00:01:42]} {[%emt 00:00:04]} Rxc1+ {[%clk 00:01:52]} {[%emt
00:00:03]} 42. Qxc1 {[%clk 00:01:50]} {[%emt 00:00:02]} Qd3+ {[%clk 00:02:01]}
0-1

[Event "Vastgota Open 2022"]
[Site "Skara stadshotell, Jarnvagsgatan 5, Skara, Sweden"]
[Date "2022.10.29"]
[Round "1.10"]
[White "Lind, Jan-Olov"]
[Black "Nielsen, Peter"]
[Result "1-0"]
[TimeControl "30 minutes + 10 seconds per move from move one."]
[WhiteFideId "1701193"]
[BlackFideId "1707485"]
[WhiteElo "2123"]
[BlackElo "1683"]

1. e4 {[%clk 00:30:16]} {[%emt 00:00:02]} c5 {[%clk 00:30:17]} {[%emt
00:00:03]} 2. Nf3 {[%clk 00:30:23]} {[%emt 00:00:02]} Nc6 {[%clk 00:30:23]}
{[%emt 00:00:06]} 3. d3 {[%emt 00:00:16]} g6 {[%clk 00:30:27]} {[%emt
00:00:04]} 4. g3 {[%clk 00:30:26]} {[%emt 00:00:02]} Bg7 {[%clk 00:30:34]}
{[%emt 00:00:03]} 5. Bg2 {[%clk 00:30:34]} {[%emt 00:00:01]} e5 {[%clk
00:30:32]} {[%emt 00:00:13]} 6. O-O {[%clk 00:30:41]} {[%emt 00:00:02]} Nge7
{[%clk 00:30:37]} {[%emt 00:00:06]} 7. c3 {[%clk 00:30:48]} {[%emt 00:00:03]}
O-O {[%clk 00:30:42]} {[%emt 00:00:05]} 8. a3 {[%clk 00:30:56]} {[%emt
00:00:02]} d6 {[%clk 00:29:28]} {[%emt 00:01:23]} 9. b4 {[%clk 00:31:02]}
{[%emt 00:01:44]} a6 {[%clk 00:29:32]} 10. h3 {[%clk 00:30:55]} h6 {[%clk
00:29:34]} 11. Be3 {[%clk 00:30:56]} b6 {[%clk 00:28:25]} {[%emt 00:00:20]} 12.
d4 {[%clk 00:30:12]} {[%emt 00:00:54]} cxd4 {[%clk 00:27:12]} {[%emt 00:01:23]}
13. cxd4 {[%clk 00:30:13]} {[%emt 00:00:09]} exd4 {[%clk 00:26:56]} {[%emt
00:00:26]} 14. Nxd4 {[%clk 00:30:14]} {[%emt 00:00:09]} Bb7 {[%clk 00:25:47]}
{[%emt 00:01:19]} 15. Ra2 {[%clk 00:27:11]} {[%emt 00:03:13]} Nxd4 {[%clk
00:24:26]} {[%emt 00:01:31]} 16. Bxd4 {[%clk 00:27:17]} {[%emt 00:00:04]} Nc6
{[%clk 00:24:24]} {[%emt 00:00:12]} 17. Bxg7 {[%clk 00:27:20]} {[%emt
00:00:06]} Kxg7 {[%clk 00:24:31]} {[%emt 00:00:03]} 18. Rd2 {[%clk 00:27:01]}
{[%emt 00:00:29]} Qc7 {[%clk 00:23:20]} {[%emt 00:01:22]} 19. Rxd6 {[%clk
00:26:51]} {[%emt 00:00:21]} Rad8 {[%clk 00:22:28]} {[%emt 00:01:01]} 20. Rxd8
{[%clk 00:26:56]} {[%emt 00:00:05]} Rxd8 {[%clk 00:22:31]} {[%emt 00:00:07]} 21.
Qc2 {[%clk 00:26:56]} {[%emt 00:00:10]} Qe5 {[%clk 00:21:04]} {[%emt 00:01:37]}
22. Kh2 {[%clk 00:22:31]} {[%emt 00:04:35]} Rc8 {[%clk 00:19:11]} {[%emt
00:02:03]} 23. f4 {[%clk 00:21:17]} {[%emt 00:01:23]} Qe7 {[%clk 00:15:53]}
{[%emt 00:03:29]} 24. Qb2+ {[%clk 00:21:10]} {[%emt 00:00:17]} Kg8 {[%clk
00:15:35]} {[%emt 00:00:29]} 25. Rc1 {[%clk 00:20:41]} {[%emt 00:00:38]} Nd8
{[%clk 00:14:49]} {[%emt 00:00:56]} 26. Rxc8 {[%clk 00:20:39]} {[%emt
00:00:12]} Bxc8 {[%clk 00:14:57]} {[%emt 00:00:02]} 27. Qd4 {[%clk 00:19:56]}
{[%emt 00:00:53]} b5 {[%clk 00:14:11]} {[%emt 00:00:57]} 28. Nc3 {[%clk
00:19:46]} {[%emt 00:00:19]} Ne6 {[%clk 00:13:00]} {[%emt 00:01:21]} 29. Nd5
{[%clk 00:16:44]} {[%emt 00:03:13]} Qd8 {[%clk 00:10:36]} {[%emt 00:02:34]} 30.
Qa7 {[%clk 00:15:08]} {[%emt 00:01:45]} Kg7 {[%clk 00:08:41]} {[%emt 00:02:05]}
31. Qb8 {[%clk 00:14:32]} {[%emt 00:00:47]} Qd7 {[%clk 00:07:49]} {[%emt
00:01:02]} 32. Qe5+ {[%clk 00:14:15]} {[%emt 00:00:27]} 1-0

[Event "Vastgota Open 2022"]
[Site "Skara stadshotell, Jarnvagsgatan 5, Skara, Sweden"]
[Date "2022.10.29"]
[Round "2.1"]
[White "Blomqvist, Erik"]
[Black "Blauhut, Holger"]
[Result "1-0"]
[TimeControl "30 minutes + 10 seconds per move from move one."]
[WhiteTitle "GM"]
[BlackTitle "CM"]
[WhiteFideId "1709437"]
[BlackFideId "24665177"]
[WhiteElo "2490"]
[BlackElo "2037"]

1. d4 {[%clk 00:30:16]} {[%emt 00:00:03]} d5 {[%clk 00:30:11]} {[%emt
00:00:09]} 2. Bf4 {[%clk 00:30:24]} {[%emt 00:00:03]} Nf6 {[%clk 00:30:12]}
{[%emt 00:00:09]} 3. e3 {[%clk 00:30:32]} {[%emt 00:00:02]} c5 {[%clk
00:30:11]} {[%emt 00:00:11]} 4. Nf3 {[%clk 00:30:37]} {[%emt 00:02:38]} e6
{[%clk 00:30:03]} 5. Nbd2 {[%clk 00:30:44]} Nc6 {[%clk 00:30:07]} 6. c3 {[%clk
00:30:52]} cxd4 {[%clk 00:29:53]} 7. exd4 {[%clk 00:31:00]} Nh5 {[%clk
00:29:30]} 8. Be3 {[%clk 00:31:08]} f5 {[%clk 00:29:24]} 9. Ne5 {[%clk
00:30:36]} g6 {[%clk 00:28:19]} {[%emt 00:01:10]} 10. Ndf3 {[%clk 00:28:27]}
{[%emt 00:02:19]} Bd6 {[%clk 00:26:28]} {[%emt 00:02:01]} 11. Bh6 {[%clk
00:27:39]} {[%emt 00:00:57]} Qc7 {[%clk 00:23:53]} {[%emt 00:02:45]} 12. Bb5
{[%clk 00:26:21]} {[%emt 00:01:29]} a6 {[%clk 00:23:21]} {[%emt 00:00:42]} 13.
Bxc6+ {[%clk 00:26:14]} {[%emt 00:00:17]} bxc6 {[%clk 00:23:23]} {[%emt
00:00:08]} 14. O-O {[%clk 00:26:11]} {[%emt 00:00:12]} Bf8 {[%clk 00:20:13]}
{[%emt 00:03:20]} 15. Bxf8 {[%clk 00:26:05]} {[%emt 00:00:17]} Kxf8 {[%clk
00:19:54]} {[%emt 00:00:28]} 16. Qa4 {[%clk 00:25:15]} {[%emt 00:01:01]} c5
{[%clk 00:17:56]} {[%emt 00:02:08]} 17. Qa3 {[%clk 00:25:06]} {[%emt 00:00:19]}
Kg7 {[%clk 00:17:35]} {[%emt 00:00:31]} 18. Qxc5 {[%clk 00:24:56]} {[%emt
00:00:19]} Qxc5 {[%clk 00:17:25]} {[%emt 00:00:21]} 19. dxc5 {[%clk 00:25:04]}
{[%emt 00:00:02]} a5 {[%clk 00:17:17]} {[%emt 00:00:18]} 20. b4 {[%clk
00:24:11]} {[%emt 00:01:02]} Ba6 {[%clk 00:17:11]} {[%emt 00:00:15]} 21. Rfe1
{[%clk 00:24:14]} {[%emt 00:00:08]} Nf4 {[%clk 00:13:43]} {[%emt 00:03:39]} 22.
Nd4 {[%clk 00:24:14]} {[%emt 00:00:10]} axb4 {[%clk 00:12:43]} {[%emt
00:01:11]} 23. cxb4 {[%clk 00:24:19]} {[%emt 00:00:05]} Bc4 {[%clk 00:10:46]}
{[%emt 00:02:08]} 24. a4 {[%clk 00:24:16]} {[%emt 00:00:12]} Rhe8 {[%clk
00:04:33]} {[%emt 00:06:22]} 25. b5 {[%clk 00:24:00]} {[%emt 00:00:27]} 1-0

[Event "Vastgota Open 2022"]
[Site "Skara stadshotell, Jarnvagsgatan 5, Skara, Sweden"]
[Date "2022.10.29"]
[Round "2.2"]
[White "Moborn, Anders"]
[Black "Cramling, Pia"]
[Result "0-1"]
[TimeControl "30 minutes + 10 seconds per move from move one."]
[BlackTitle "GM"]
[WhiteFideId "1706349"]
[BlackFideId "1700030"]
[WhiteElo "2038"]
[BlackElo "2421"]

1. d4 {[%clk 00:30:15]} {[%emt 00:00:05]} Nf6 {[%clk 00:30:07]} {[%emt
00:00:13]} 2. c4 {[%clk 00:30:17]} {[%emt 00:00:08]} e6 {[%clk 00:30:09]}
{[%emt 00:00:07]} 3. Nf3 {[%clk 00:30:14]} {[%emt 00:02:43]} b6 {[%clk
00:30:12]} 4. g3 {[%clk 00:29:28]} Ba6 {[%clk 00:30:08]} 5. Qc2 {[%clk
00:29:22]} c5 {[%clk 00:29:06]} {[%emt 00:00:15]} 6. Bg2 {[%clk 00:29:23]}
{[%emt 00:00:10]} Nc6 {[%clk 00:27:39]} {[%emt 00:01:36]} 7. dxc5 {[%clk
00:27:10]} {[%emt 00:02:25]} Bxc5 {[%clk 00:26:53]} {[%emt 00:00:56]} 8. a3
{[%clk 00:26:50]} {[%emt 00:00:30]} Be7 {[%clk 00:24:24]} {[%emt 00:02:38]} 9.
O-O {[%clk 00:26:27]} {[%emt 00:00:33]} Rc8 {[%clk 00:23:41]} {[%emt 00:00:52]}
10. Rd1 {[%clk 00:23:16]} {[%emt 00:03:22]} Qc7 {[%clk 00:22:49]} {[%emt
00:01:02]} 11. b3 {[%clk 00:21:56]} {[%emt 00:01:30]} O-O {[%clk 00:22:25]}
{[%emt 00:00:33]} 12. Bb2 {[%clk 00:21:18]} {[%emt 00:00:49]} Rfd8 {[%clk
00:21:26]} {[%emt 00:01:07]} 13. Nc3 {[%clk 00:18:59]} {[%emt 00:02:30]} Na5
{[%clk 00:20:16]} {[%emt 00:01:20]} 14. Rd2 {[%clk 00:17:39]} {[%emt 00:01:30]}
d5 {[%clk 00:18:48]} {[%emt 00:01:37]} 15. cxd5 {[%clk 00:16:52]} {[%emt
00:00:58]} Nxd5 {[%clk 00:18:07]} {[%emt 00:00:50]} 16. Rc1 {[%clk 00:15:15]}
{[%emt 00:01:47]} Nxc3 {[%clk 00:17:38]} {[%emt 00:00:39]} 17. Rxd8+ {[%clk
00:15:13]} {[%emt 00:00:12]} Qxd8 {[%clk 00:15:16]} {[%emt 00:02:31]} 18. Bxc3
{[%clk 00:15:18]} {[%emt 00:00:06]} Bxa3 {[%clk 00:15:08]} {[%emt 00:00:18]} 19.
Rd1 {[%clk 00:15:04]} {[%emt 00:00:24]} Qe7 {[%clk 00:12:24]} {[%emt 00:02:52]}
20. Ne5 {[%clk 00:11:12]} {[%emt 00:04:05]} Bb5 {[%clk 00:12:18]} {[%emt
00:00:15]} 21. Nd3 {[%clk 00:10:01]} {[%emt 00:01:21]} Qc7 {[%clk 00:11:16]}
{[%emt 00:01:11]} 22. Qa2 {[%clk 00:10:00]} {[%emt 00:00:12]} Qxc3 {[%clk
00:11:06]} {[%emt 00:00:20]} 23. Qxa3 {[%clk 00:10:09]} {[%emt 00:00:01]} Qxb3
{[%emt 00:03:52]} 0-1